fUST/lending_fUST_20250227
["ID","MTS","AMOUNT","RATE_DAILY","PERIOD"]
[354704535,1740631837986,-132.71761264,0.000379,2]
[354704556,1740631843205,-43.74862505,0.000379,2]
[354704557,1740631843214,-330.98340124,0.0004,7]
[354704558,1740631843224,-171.0,0.00045,90]
[354704559,1740631843234,-151.0,0.00045,120]
[354704560,1740631843244,-162.250127,0.00046256,33]
[354704561,1740631843253,-187.5580533,0.00046473,120]
[354704562,1740631843262,-5000.0,0.000465,120]
[354704564,1740631843271,-500.0,0.00046573,7]
[354704566,1740631843281,-500.0,0.00046573,10]
[354704568,1740631843290,-500.0,0.00046573,10]
[354704570,1740631843299,-157.241,0.00046573,77]
[354704572,1740631843308,-5000.0,0.00046573,120]
[354704574,1740631843317,-20661.94,0.00046574,120]
[354704575,1740631843326,-500.0,0.00046575,120]
[354704576,1740631843335,-501.20050392,0.00046575,120]
[354704577,1740631843346,-642.07,0.00046575,120]
[354704578,1740631843355,-500.0,0.00046575,120]
[354704580,1740631843364,-500.0,0.00046575,120]
[354704581,1740631843373,-500.0,0.00046575,120]
[354704582,1740631843382,-504.13192756,0.00046575,120]
[354704583,1740631843392,-500.0,0.00046575,120]
[354704584,1740631843401,-500.0,0.00046575,120]
[354704585,1740631843410,-500.0,0.00046575,120]
[354704586,1740631843419,-500.0,0.00046575,120]
[354704587,1740631843429,-500.0,0.00046575,120]
[354704588,1740631843438,-500.0,0.00046575,120]
[354704589,1740631843447,-639.81,0.00046575,120]
[354704590,1740631843456,-1142.95,0.00046575,120]
[354704591,1740631843465,-663.58,0.00046575,120]
[354704592,1740631843474,-500.0,0.00046575,120]
[354704593,1740631843483,-500.0,0.00046575,120]
[354704594,1740631843492,-500.0,0.00046575,120]
[354704595,1740631843501,-500.0,0.00046575,120]
[354704596,1740631843510,-799.7,0.00046575,120]
[354704597,1740631843519,-500.0,0.00046575,120]
[354704598,1740631843529,-500.0,0.00046575,120]
[354704599,1740631843538,-500.0,0.00046575,120]
[354704600,1740631843548,-500.0,0.00046575,120]
[354704601,1740631843557,-500.0,0.00046575,120]
[354704602,1740631843566,-515.38207725,0.00046575,120]
[354704603,1740631843575,-764.63,0.00046575,120]
[354704604,1740631843585,-500.0,0.00046575,120]
[354704605,1740631843595,-500.0,0.00046575,120]
[354704606,1740631843604,-500.0,0.00046575,120]
[354704607,1740631843614,-4376.04390926,0.00046575,3]
[354704608,1740631843623,-500.0,0.00046575,120]
[354704609,1740631843632,-785.75,0.00046575,120]
[354704610,1740631843642,-505.49906312,0.00046575,120]
[354704611,1740631843651,-500.0,0.00046575,120]
[354704612,1740631843660,-500.0,0.00046575,120]
[354704613,1740631843670,-500.0,0.00046575,120]
[354704614,1740631843679,-509.85,0.00046575,120]
[354704615,1740631843689,-500.0,0.00046575,120]
[354704616,1740631843698,-500.0,0.00046575,120]
[354704617,1740631843707,-500.0,0.00046575,120]
[354704618,1740631843716,-500.0,0.00046575,120]
[354704619,1740631843726,-572.45,0.00046575,120]
[354704620,1740631843735,-762.39,0.00046575,120]
[354704621,1740631843747,-752.61,0.00046575,120]
[354704622,1740631843757,-981.17,0.00046575,120]
[354704623,1740631843767,-500.0,0.00046575,120]
[354704624,1740631843776,-648.97,0.00046575,120]
[354704625,1740631843786,-500.0,0.00046575,120]
[354704626,1740631843797,-747.19,0.00046575,120]
[354704627,1740631843809,-483.15457361,0.00046575,120]
[354704628,1740631843820,-500.72884407,0.00046575,120]
[354704629,1740631843830,-500.0,0.00046575,120]
[354704630,1740631843840,-662.19,0.00046575,120]
[354704631,1740631843850,-500.0,0.00046575,120]
[354704632,1740631843859,-500.0,0.00046575,120]
[354704633,1740631843868,-505.54545043,0.00046575,120]
[354704634,1740631843877,-1285.26,0.00046575,120]
[354704635,1740631843887,-802.12,0.00046575,120]
[354704636,1740631843899,-500.0,0.00046575,120]
[354704637,1740631843908,-503.32289268,0.00046575,120]
[354704638,1740631843917,-500.0,0.00046575,120]
[354704639,1740631843926,-500.0,0.00046575,120]
[354704640,1740631843936,-500.0,0.00046575,120]
[354704641,1740631843944,-500.0,0.00046575,120]
[354704642,1740631843954,-500.0,0.00046575,120]
[354704643,1740631843963,-583.62,0.00046575,120]
[354704644,1740631843972,-500.0,0.00046575,120]
[354704645,1740631843981,-2717.19,0.00046575,120]
[354704646,1740631843990,-500.0,0.00046575,120]
[354704647,1740631843999,-500.0,0.00046575,120]
[354704648,1740631844011,-500.0,0.00046575,120]
[354704649,1740631844022,-500.0,0.00046575,120]
[354704650,1740631844031,-500.0,0.00046575,120]
[354704651,1740631844040,-500.0,0.00046575,120]
[354704652,1740631844051,-1643.68,0.00046575,120]
[354704653,1740631844061,-1635.18,0.00046575,120]
[354704654,1740631844070,-300.0,0.00046575,120]
[354704655,1740631844079,-500.0,0.00046575,120]
[354704656,1740631844091,-2453.34,0.00046575,120]
[354704657,1740631844100,-500.0,0.00046575,120]
[354704658,1740631844109,-500.0,0.00046575,120]
[354704659,1740631844118,-500.0,0.00046575,120]
[354704660,1740631844127,-500.0,0.00046575,120]
[354704661,1740631844136,-500.0,0.00046575,120]
[354704662,1740631844146,-500.0,0.00046575,120]
[354704663,1740631844155,-500.0,0.00046575,120]
[354704664,1740631844164,-1277.32,0.00046575,120]
[354704665,1740631844173,-500.0,0.00046575,120]
[354704666,1740631844183,-3518.13,0.00046575,120]
[354704667,1740631844192,-500.0,0.00046575,120]
[354704668,1740631844200,-551.02,0.00046575,120]
[354704669,1740631844210,-835.5,0.00046575,120]
[354704670,1740631844219,-1218.71,0.00046575,120]
[354704671,1740631844228,-739.56,0.00046575,120]
[354704672,1740631844239,-500.0,0.00046575,120]
[354704673,1740631844248,-1099.85,0.00046575,120]
[354704674,1740631844257,-571.29,0.00046575,120]
[354704675,1740631844267,-500.0,0.00046575,120]
[354704676,1740631844276,-500.0,0.00046575,120]
[354704677,1740631844287,-500.0,0.00046575,120]
[354704678,1740631844298,-555.12,0.00046575,120]
[354704679,1740631844309,-526.55,0.00046575,120]
[354704680,1740631844319,-503.04,0.00046575,120]
[354704681,1740631844329,-2160.42,0.00046575,120]
[354704682,1740631844338,-500.0,0.00046575,120]
[354704683,1740631844347,-500.0,0.00046575,120]
[354704684,1740631844356,-1428.73,0.00046575,120]
[354704685,1740631844366,-1275.22,0.00046575,120]
[354704686,1740631844375,-584.04,0.00046575,120]
[354704687,1740631844385,-527.87,0.00046575,120]
[354704688,1740631844394,-576.33,0.00046575,120]
[354704689,1740631844403,-2910.96,0.00046575,120]
[354704690,1740631844412,-447.39748133,0.00046575,120]
[354704691,1740631844421,-500.0,0.00046575,120]
[354704692,1740631844430,-500.0,0.00046575,120]
[354704693,1740631844440,-1613.78,0.00046575,120]
[354704694,1740631844449,-500.0,0.00046575,120]
[354704695,1740631844458,-500.0,0.00046575,120]
[354704696,1740631844467,-550.66,0.00046575,120]
[354704697,1740631844476,-1506.63,0.00046575,120]
[354704698,1740631844485,-500.0,0.00046575,120]
[354704699,1740631844495,-500.0,0.00046575,120]
[354704700,1740631844504,-500.0,0.00046575,120]
[354704701,1740631844513,-1390.78,0.00046575,120]
[354704702,1740631844522,-500.0,0.00046575,120]
[354704703,1740631844531,-500.0,0.00046575,120]
[354704704,1740631844541,-746.57,0.00046575,120]
[354704705,1740631844550,-1023.62,0.00046575,120]
[354704706,1740631844559,-500.0,0.00046575,120]
[354704707,1740631844568,-723.68,0.00046575,120]
[354704708,1740631844577,-1187.95,0.00046575,120]
[354704709,1740631844586,-1283.11,0.00046575,120]
[354704710,1740631844595,-2296.4,0.00046575,120]
[354704711,1740631844606,-504.01585449,0.00046575,120]
[354704712,1740631844615,-500.0,0.00046575,120]
[354704713,1740631844624,-500.0,0.00046575,120]
[354704714,1740631844633,-869.52,0.00046575,120]
[354704715,1740631844642,-502.39894354,0.00046575,120]
[354704716,1740631844651,-500.0,0.00046575,120]
[354704717,1740631844660,-690.68,0.00046575,120]
[354704718,1740631844669,-500.0,0.00046575,120]
[354704719,1740631844678,-2142.41,0.00046575,120]
[354704720,1740631844688,-500.0,0.00046575,120]
[354704721,1740631844697,-647.17,0.00046575,120]
[354704722,1740631844706,-1069.91,0.00046575,120]
[354704723,1740631844715,-501.75015474,0.00046575,120]
[354704724,1740631844724,-696.71,0.00046575,120]
[354704725,1740631844733,-520.12,0.00046575,120]
[354704726,1740631844743,-763.57,0.00046575,120]
[354704727,1740631844752,-1837.23,0.00046575,120]
[354704728,1740631844762,-500.0,0.00046575,120]
[354704729,1740631844771,-500.0,0.00046575,15]
[354704730,1740631844780,-618.97,0.00046575,120]
[354704731,1740631844789,-500.0,0.00046575,120]
[354704732,1740631844799,-554.59,0.00046575,120]
[354704733,1740631844808,-500.0,0.00046575,120]
[354704734,1740631844818,-503.25620002,0.00046575,120]
[354704735,1740631844827,-504.15,0.00046575,120]
[354704736,1740631844838,-500.78,0.00046575,120]
[354704737,1740631844849,-1124.12,0.00046575,120]
[354704738,1740631844858,-500.0,0.00046575,120]
[354704739,1740631844868,-500.0,0.00046575,120]
[354704740,1740631844877,-750.29,0.00046575,120]
[354704741,1740631844886,-500.0,0.00046575,120]
[354704742,1740631844896,-500.0,0.00046575,120]
[354704743,1740631844906,-500.0,0.00046575,120]
[354704744,1740631844916,-2601.82,0.00046575,120]
[354704745,1740631844925,-752.24,0.00046575,120]
[354704746,1740631844935,-503.43908834,0.00046575,120]
[354704747,1740631844944,-500.0,0.00046575,120]
[354704748,1740631844953,-201.27793882,0.00046575,120]
[354704749,1740631844962,-1338.96,0.00046575,120]
[354704750,1740631844971,-500.0,0.00046575,120]
[354704751,1740631844980,-500.0,0.00046575,120]
[354704752,1740631844989,-500.0,0.00046575,120]
[354704753,1740631844998,-634.71,0.00046575,120]
[354704754,1740631845007,-1128.96,0.00046575,120]
[354704755,1740631845021,-500.0,0.00046575,120]
[354704756,1740631845030,-500.0,0.00046575,120]
[354704757,1740631845039,-500.0,0.00046575,30]
[354704758,1740631845048,-500.0,0.00046575,120]
[354704759,1740631845058,-600.28096313,0.00046575,120]
[354704760,1740631845067,-500.0,0.00046575,120]
[354704761,1740631845076,-415.13520889,0.00046575,120]
[354704762,1740631845087,-920.16,0.00046575,120]
[354704763,1740631845096,-500.0,0.00046575,120]
[354704764,1740631845106,-500.0,0.00046575,120]
[354704765,1740631845116,-518.04,0.00046575,120]
[354704766,1740631845125,-500.0,0.00046575,120]
[354704767,1740631845135,-500.0,0.00046575,45]
[354704768,1740631845144,-500.0,0.00046575,120]
[354704769,1740631845154,-990.67,0.00046575,120]
[354704770,1740631845163,-683.63,0.00046575,120]
[354704771,1740631845172,-500.0,0.00046575,120]
[354704772,1740631845182,-500.0,0.00046575,120]
[354704773,1740631845191,-992.49,0.00046575,120]
[354704774,1740631845200,-500.0,0.00046575,120]
[354704775,1740631845210,-581.14,0.00046575,120]
[354704776,1740631845219,-441.68619297,0.00046575,120]
[354704777,1740631845228,-336.39591312,0.00046575,120]
[354704778,1740631845238,-550.53,0.00046575,120]
[354704779,1740631845248,-6653.55,0.00046575,120]
[354704780,1740631845257,-500.0,0.00046575,120]
[354704781,1740631845267,-500.0,0.00046575,120]
[354704782,1740631845276,-2893.76,0.00046575,120]
[354704783,1740631845285,-644.03,0.00046575,120]
[354704784,1740631845295,-200.0,0.00046575,7]
[354704785,1740631845304,-500.0,0.00046575,120]
[354704786,1740631845313,-500.0,0.00046575,120]
[354704787,1740631845323,-500.0,0.00046575,120]
[354704788,1740631845332,-500.0,0.00046575,120]
[354704789,1740631845342,-500.0,0.00046575,120]
[354704790,1740631845351,-554.1,0.00046575,120]
[354704791,1740631845360,-500.0,0.00046575,120]
[354704792,1740631845369,-1812.66,0.00046575,120]
[354704793,1740631845378,-697.55,0.00046575,120]
[354704794,1740631845388,-500.0,0.00046575,120]
[354704795,1740631845397,-159.39285376,0.00046575,120]
[354704796,1740631845406,-500.0,0.00046575,120]
[354704797,1740631845415,-508.1135934,0.00046575,120]
[354704798,1740631845424,-2528.54,0.00046575,120]
[354704799,1740631845434,-2032.24,0.00046575,120]
[354704800,1740631845443,-698.46,0.00046575,120]
[354704801,1740631845453,-500.0,0.00046575,120]
[354704802,1740631845462,-1168.66,0.00046575,120]
[354704803,1740631845471,-500.0,0.00046575,120]
[354704804,1740631845480,-500.0,0.00046575,120]
[354704805,1740631845490,-28722.05,0.00046575,120]
[354704806,1740631845499,-500.0,0.00046575,120]
[354704807,1740631845508,-500.0,0.00046575,120]
[354704808,1740631845517,-8721.89,0.00046575,120]
[354704809,1740631845527,-500.0,0.00046575,120]
[354704810,1740631845537,-743.63,0.00046575,120]
[354704811,1740631845546,-1034.61,0.00046575,120]
[354704812,1740631845556,-500.0,0.00046575,120]
[354704813,1740631845565,-500.0,0.00046575,120]
[354704814,1740631845575,-500.0,0.00046575,120]
[354704815,1740631845584,-500.0,0.00046575,120]
[354704816,1740631845593,-2081.95,0.00046575,120]
[354704817,1740631845603,-514.22389054,0.00046575,120]
[354704818,1740631845613,-615.53,0.00046575,30]
[354704819,1740631845622,-3294.81,0.00046575,120]
[354704820,1740631845633,-500.0,0.00046575,120]
[354704821,1740631845644,-500.0,0.00046575,120]
[354704822,1740631845654,-500.0,0.00046575,120]
[354704823,1740631845664,-500.0,0.00046575,120]
[354704824,1740631845673,-506.74,0.00046575,120]
[354704825,1740631845684,-1300.34,0.00046575,120]
[354704826,1740631845694,-1298.99,0.00046575,120]
[354704827,1740631845703,-363.513276,0.00046575,120]
[354704828,1740631845713,-500.0,0.00046575,120]
[354704829,1740631845723,-1872.7,0.00046575,120]
[354704830,1740631845733,-500.0,0.00046575,120]
[354704831,1740631845745,-4060.23,0.00046575,120]
[354704832,1740631845756,-500.0,0.00046575,120]
[354704833,1740631845766,-170.81188629,0.00046575,120]
[354704834,1740631845775,-500.0,0.00046575,120]
[354704835,1740631845785,-885.79,0.00046575,120]
[354704836,1740631845794,-10466.01,0.00046575,3]
[354704837,1740631845804,-802.79,0.00046575,120]
[354704839,1740631845814,-500.0,0.00046575,120]
[354704840,1740631845823,-123192.13,0.00046575,7]
[354704841,1740631845832,-500.0,0.00046575,120]
[354704842,1740631845842,-1325.05,0.00046575,120]
[354704843,1740631845852,-362.19803798,0.00046575,120]
[354704844,1740631845862,-624.17,0.00046575,120]
[354704845,1740631845871,-500.0,0.00046575,120]
[354704846,1740631845880,-500.0,0.00046575,120]
[354704847,1740631845889,-4387.53,0.00046575,120]
[354704848,1740631845899,-500.0,0.00046575,120]
[354704849,1740631845910,-500.0,0.00046575,120]
[354704851,1740631845919,-500.0,0.00046575,120]
[354704852,1740631845930,-500.0,0.00046575,120]
[354704853,1740631845941,-500.0,0.00046575,120]
[354704854,1740631845952,-500.0,0.00046575,120]
[354704855,1740631845962,-2287.55,0.00046575,120]
[354704857,1740631845971,-500.0,0.00046575,120]
[354704858,1740631845980,-500.0,0.00046575,120]
[354704859,1740631845990,-500.0,0.00046575,120]
[354704860,1740631846000,-1438.88,0.00046575,120]
[354704861,1740631846011,-500.0,0.00046575,120]
[354704862,1740631846023,-780.78,0.00046575,120]
[354704863,1740631846033,-5870.77,0.00046575,120]
[354704864,1740631846042,-500.0,0.00046575,120]
[354704865,1740631846051,-500.0,0.00046575,120]
[354704866,1740631846061,-626.13,0.00046575,120]
[354704867,1740631846070,-500.0,0.00046575,120]
[354704868,1740631846080,-1558.65,0.00046575,120]
[354704869,1740631846091,-545.86,0.00046575,120]
[354704870,1740631846100,-500.0,0.00046575,120]
[354704871,1740631846110,-1000.0,0.00046575,2]
[354704872,1740631846121,-500.0,0.00046575,120]
[354704873,1740631846131,-500.0,0.00046575,120]
[354704874,1740631846140,-500.0,0.00046575,120]
[354704875,1740631846149,-1354.49,0.00046575,120]
[354704876,1740631846158,-500.0,0.00046575,120]
[354704877,1740631846168,-1575.91,0.00046575,120]
[354704878,1740631846177,-652.96,0.00046575,120]
[354704879,1740631846187,-1743.51,0.00046575,120]
[354704880,1740631846196,-500.0,0.00046575,120]
[354704881,1740631846206,-500.0,0.00046575,120]
[354704882,1740631846215,-648.8,0.00046575,120]
[354704883,1740631846226,-792.42,0.00046575,120]
[354704884,1740631846236,-500.0,0.00046575,120]
[354704886,1740631846246,-5378.13,0.00046575,120]
[354704888,1740631846255,-500.0,0.00046575,120]
[354704889,1740631846265,-908.87,0.00046575,120]
[354704890,1740631846274,-500.0,0.00046575,120]
[354704891,1740631846283,-505.75159697,0.00046575,120]
[354704892,1740631846293,-638.24,0.00046575,120]
[354704893,1740631846302,-3375.07,0.00046575,120]
[354704894,1740631846312,-1314.45,0.00046575,120]
[354704895,1740631846321,-500.0,0.00046575,120]
[354704896,1740631846331,-500.0,0.00046575,120]
[354704897,1740631846340,-500.0,0.00046575,120]
[354704898,1740631846349,-500.0,0.00046575,120]
[354704899,1740631846359,-500.0,0.00046575,120]
[354704900,1740631846368,-1277.65,0.00046575,120]
[354704901,1740631846377,-2460.18,0.00046575,120]
[354704902,1740631846386,-754.72,0.00046575,120]
[354704903,1740631846395,-500.0,0.00046575,120]
[354704904,1740631846403,-500.0,0.00046575,120]
[354704905,1740631846413,-500.0,0.00046575,120]
[354704906,1740631846423,-500.0,0.00046575,120]
[354704907,1740631846432,-500.0,0.00046575,120]
[354704908,1740631846441,-1867.72,0.00046575,120]
[354704909,1740631846450,-1015.09,0.00046575,120]
[354704910,1740631846459,-500.0,0.00046575,21]
[354704911,1740631846469,-3471.35,0.00046575,120]
[354704912,1740631846478,-895.47,0.00046575,120]
[354704913,1740631846491,-758.36,0.00046575,120]
[354704914,1740631846500,-7919.65,0.00046575,120]
[354704915,1740631846509,-500.0,0.00046575,120]
[354704916,1740631846519,-2764.98,0.00046575,120]
[354704917,1740631846528,-660.37,0.00046575,120]
[354704918,1740631846537,-344.99924623,0.00046575,120]
[354704919,1740631846547,-500.0,0.00046575,120]
[354704920,1740631846556,-500.0,0.00046575,120]
[354704922,1740631846565,-1357.46,0.00046575,120]
[354704923,1740631846575,-761.14,0.00046575,120]
[354704925,1740631846584,-748.34,0.00046575,120]
[354704927,1740631846593,-32150.02,0.00046575,120]
[354704928,1740631846603,-1630.22,0.00046575,120]
[354704929,1740631846612,-792.7,0.00046575,120]
[354704930,1740631846621,-500.0,0.00046575,120]
[354704931,1740631846630,-505.78898493,0.00046575,120]
[354704932,1740631846639,-882.24,0.00046575,120]
[354704933,1740631846649,-500.0,0.00046575,120]
[354704934,1740631846658,-500.0,0.00046575,120]
[354704935,1740631846668,-518.34,0.00046575,120]
[354704936,1740631846677,-3195.85,0.00046575,120]
[354704937,1740631846686,-500.0,0.00046575,120]
[354704938,1740631846696,-652.02,0.00046575,120]
[354704939,1740631846879,-500.0,0.00046575,120]
[354704940,1740631846888,-674.27,0.00046575,120]
[354704941,1740631846898,-500.0,0.00046575,120]
[354704942,1740631846908,-500.0,0.00046575,120]
[354704943,1740631846917,-3156.82,0.00046575,120]
[354704944,1740631846926,-500.0,0.00046575,120]
[354704945,1740631846936,-500.0,0.00046575,120]
[354704946,1740631846945,-500.0,0.00046575,120]
[354704947,1740631846955,-22948.25,0.00046575,6]
[354704948,1740631846964,-6162.56,0.00046575,120]
[354704949,1740631846973,-500.0,0.00046575,120]
[354704950,1740631846983,-500.0,0.00046575,120]
[354704951,1740631846992,-659.78,0.00046575,120]
[354704952,1740631847001,-500.0,0.00046575,120]
[354704953,1740631847012,-1726.6,0.00046575,120]
[354704954,1740631847022,-9791.35,0.00046575,120]
[354704955,1740631847031,-14461.54,0.00046575,120]
[354704956,1740631847041,-641.56,0.00046575,120]
[354704957,1740631847050,-500.0,0.00046575,120]
[354704958,1740631847061,-690.75,0.00046575,120]
[354704959,1740631847070,-198.02,0.000466,30]
[354704960,1740631847080,-1017.8,0.000466,30]
[354704961,1740631847091,-8510.17,0.000466,30]
[354704962,1740631847100,-19607.61712864,0.00046782,2]
[354704963,1740631847110,-228.70141332,0.00046848,120]
[354704964,1740631847119,-181.62552013,0.00046848,31]
[354704965,1740631847130,-500.0,0.00046849,120]
[354704966,1740631847141,-642.07,0.00046849,120]
[354704967,1740631847150,-500.0,0.00046849,120]
[354704968,1740631847159,-500.0,0.00046849,120]
[354704969,1740631847169,-500.0,0.00046849,120]
[354704970,1740631847178,-500.0,0.00046849,120]
[354704971,1740631847187,-500.0,0.00046849,120]
[354704972,1740631847197,-500.0,0.00046849,120]
[354704973,1740631847206,-500.0,0.00046849,120]
[354704974,1740631847215,-500.0,0.00046849,120]
[354704975,1740631847224,-639.81,0.00046849,120]
[354704976,1740631847234,-1142.95,0.00046849,120]
[354704977,1740631847245,-663.58,0.00046849,120]
[354704978,1740631847254,-500.0,0.00046849,120]
[354704979,1740631847264,-500.0,0.00046849,120]
[354704980,1740631847273,-500.0,0.00046849,120]
[354704981,1740631847282,-799.7,0.00046849,120]
[354704982,1740631847292,-500.0,0.00046849,120]
[354704983,1740631847301,-500.0,0.00046849,120]
[354704984,1740631847310,-500.0,0.00046849,120]
[354704985,1740631847319,-500.0,0.00046849,120]
[354704986,1740631847328,-500.0,0.00046849,120]
[354704987,1740631847338,-764.63,0.00046849,120]
[354704988,1740631847349,-500.0,0.00046849,120]
[354704989,1740631847358,-500.0,0.00046849,120]
[354704990,1740631847367,-500.0,0.00046849,120]
[354704991,1740631847376,-785.75,0.00046849,120]
[354704992,1740631847385,-500.0,0.00046849,120]
[354704993,1740631847395,-500.0,0.00046849,120]
[354704994,1740631847403,-500.0,0.00046849,120]
[354704995,1740631847413,-509.85,0.00046849,120]
[354704996,1740631847422,-500.0,0.00046849,120]
[354704997,1740631847431,-500.0,0.00046849,120]
[354704998,1740631847441,-572.45,0.00046849,120]
[354704999,1740631847450,-762.39,0.00046849,120]
[354705000,1740631847459,-752.61,0.00046849,120]
[354705001,1740631847468,-981.17,0.00046849,120]
[354705002,1740631847478,-500.0,0.00046849,120]
[354705003,1740631847487,-648.97,0.00046849,120]
[354705004,1740631847499,-500.0,0.00046849,120]
[354705005,1740631847509,-747.19,0.00046849,120]
[354705006,1740631847518,-662.19,0.00046849,120]
[354705007,1740631847527,-1285.26,0.00046849,120]
[354705008,1740631847536,-802.12,0.00046849,120]
[354705009,1740631847546,-500.0,0.00046849,120]
[354705010,1740631847555,-583.62,0.00046849,120]
[354705011,1740631847565,-525.08112949,0.00046849,120]
[354705012,1740631847574,-2717.19,0.00046849,120]
[354705013,1740631847584,-500.0,0.00046849,120]
[354705014,1740631847595,-500.0,0.00046849,120]
[354705015,1740631847604,-506.69146413,0.00046849,120]
[354705016,1740631847613,-1643.68,0.00046849,120]
[354705017,1740631847623,-1635.18,0.00046849,120]
[354705018,1740631847632,-500.0,0.00046849,120]
[354705019,1740631847641,-2453.34,0.00046849,120]
[354705020,1740631847651,-500.0,0.00046849,120]
[354705021,1740631847660,-500.0,0.00046849,120]
[354705022,1740631847670,-500.0,0.00046849,120]
[354705023,1740631847679,-500.0,0.00046849,120]
[354705024,1740631847689,-1277.32,0.00046849,120]
[354705025,1740631847699,-500.0,0.00046849,120]
[354705026,1740631847708,-500.0,0.00046849,120]
[354705027,1740631847717,-3518.13,0.00046849,120]
[354705028,1740631847727,-551.02,0.00046849,120]
[354705029,1740631847736,-835.5,0.00046849,120]
[354705030,1740631847745,-1218.71,0.00046849,120]
[354705031,1740631847754,-739.56,0.00046849,120]
[354705032,1740631847763,-500.0,0.00046849,120]
[354705033,1740631847772,-1099.85,0.00046849,120]
[354705034,1740631847781,-571.29,0.00046849,120]
[354705035,1740631847790,-500.0,0.00046849,120]
[354705036,1740631847809,-500.0,0.00046849,120]
[354705037,1740631847820,-555.12,0.00046849,120]
[354705038,1740631847830,-526.55,0.00046849,120]
[354705039,1740631847840,-503.04,0.00046849,120]
[354705040,1740631847851,-2160.42,0.00046849,120]
[354705041,1740631847860,-500.0,0.00046849,120]
[354705042,1740631847870,-500.0,0.00046849,120]
[354705043,1740631847880,-1428.73,0.00046849,120]
[354705044,1740631847890,-1275.22,0.00046849,120]
[354705045,1740631847900,-584.04,0.00046849,120]
[354705046,1740631847910,-527.87,0.00046849,120]
[354705047,1740631847920,-576.33,0.00046849,120]
[354705048,1740631847929,-2910.96,0.00046849,120]
[354705049,1740631847939,-500.0,0.00046849,120]
[354705050,1740631847949,-500.0,0.00046849,120]
[354705051,1740631847959,-1613.78,0.00046849,120]
[354705052,1740631847968,-500.0,0.00046849,120]
[354705053,1740631847978,-500.0,0.00046849,120]
[354705054,1740631847988,-550.66,0.00046849,120]
[354705055,1740631847998,-1506.63,0.00046849,120]
[354705056,1740631848013,-500.0,0.00046849,120]
[354705057,1740631848023,-500.0,0.00046849,120]
[354705058,1740631848033,-500.0,0.00046849,120]
[354705059,1740631848042,-1390.78,0.00046849,120]
[354705060,1740631848052,-500.0,0.00046849,120]
[354705061,1740631848063,-746.57,0.00046849,120]
[354705062,1740631848072,-1023.62,0.00046849,120]
[354705063,1740631848082,-500.0,0.00046849,120]
[354705064,1740631848094,-723.68,0.00046849,120]
[354705065,1740631848104,-1187.95,0.00046849,120]
[354705066,1740631848114,-1283.11,0.00046849,120]
[354705067,1740631848124,-2296.4,0.00046849,120]
[354705068,1740631848134,-500.0,0.00046849,120]
[354705069,1740631848144,-869.52,0.00046849,120]